bitfinex/quotes_SOLUSD_20251224
["timestamp","ask_amount","ask_price","bid_price","bid_amount"]
[1766592181874,10.43767296,122.9,122.86,4.58953457]
[1766592182188,29.88720753,122.93,122.89,0.67]
[1766592182390,4.58953457,122.9,122.85,18.57759005]
[1766592182588,4.58953457,122.89,122.85,8.8098412]
[1766592182795,4.58953457,122.88,122.84,0.67]
[1766592183089,4.58953457,122.87,122.82,4.58953457]
[1766592183265,5.00953457,122.87,122.82,13.40138815]
[1766592183470,4.58953457,122.86,122.82,8.81185358]
[1766592183666,4.58953457,122.86,122.82,8.81181352]
[1766592184190,4.58953457,122.86,122.82,0.67]
[1766592184191,19.44953457,122.86,122.82,0.67]
[1766592184375,0.42,122.84,122.79,0.87]
[1766592184569,4.58953457,122.83,122.79,0.87]
[1766592184888,8.56119987,122.84,122.79,13.60333868]
[1766592185075,5.00953457,122.84,122.8,0.67]
[1766592185272,4.58953457,122.85,122.8,0.67]
[1766592185477,8.55995303,122.86,122.81,5.25953457]
[1766592185478,14.86,122.84,122.81,5.25953457]
[1766592185681,14.86,122.84,122.81,0.67]
[1766592185876,19.86953457,122.84,122.79,5.45953457]
[1766592186271,15.28,122.84,122.79,9.01390443]
[1766592186470,14.86,122.84,122.8,8.81329137]
[1766592186697,14.86,122.84,122.8,13.40282594]
[1766592187077,10.43767296,122.85,122.82,0.67]
[1766592187286,14.86,122.85,122.83,0.71]
[1766592187479,14.86,122.85,122.81,5.29953457]
[1766592187675,19.44953457,122.85,122.81,0.71]
[1766592187972,4.58953457,122.83,122.79,0.91]
[1766592188173,5.00953457,122.84,122.79,5.49953457]
[1766592188372,5.00953457,122.84,122.79,13.64340442]
[1766592188896,13.15026101,122.84,122.79,13.64340442]
[1766592189893,4.58953457,122.83,122.79,0.91]
[1766592190200,14.86,122.82,122.79,0.91]
[1766592190495,5.00953457,122.83,122.79,0.91]
[1766592190977,19.86953457,122.83,122.79,0.91]
[1766592191488,28.01098798,122.83,122.79,0.91]
[1766592191693,5.00953457,122.81,122.79,0.2]
[1766592191994,19.86953457,122.8,122.75,12.9359421]
[1766592192173,19.86953457,122.8,122.75,13.6459421]
[1766592192174,4.58953457,122.79,122.75,13.6459421]
[1766592192373,19.86953457,122.8,122.75,13.6459421]
[1766592192576,15.28,122.8,122.76,12.73540575]
[1766592192775,15.28,122.8,122.76,13.44540575]
[1766592193078,14.86,122.8,122.76,13.44540575]
[1766592193493,8.14272274,122.81,122.76,13.44540575]
[1766592193691,14.86,122.8,122.76,13.44540575]
[1766592193901,27.59296576,122.8,122.76,0.71]
[1766592194094,14.86,122.8,122.76,13.44522717]
[1766592194279,14.86,122.8,122.78,0.71]
[1766592194498,14.86,122.8,122.76,8.8556926]
[1766592194687,14.86,122.8,122.76,13.44522717]
[1766592194882,8.56224557,122.82,122.76,12.73522717]
[1766592195175,11.25227054,122.83,122.79,0.71]
[1766592195176,14.86,122.81,122.79,0.71]
[1766592195376,14.86,122.81,122.77,5.29953457]
[1766592195581,14.86,122.81,122.77,0.71]
[1766592195791,14.86,122.81,122.77,5.29953457]
[1766592196004,14.86,122.81,122.77,13.44454948]
[1766592196306,27.59063359,122.84,122.8,0.71]
[1766592196484,4.58953457,122.83,122.8,0.71]
[1766592196804,28.82523117,122.84,122.8,0.71]
[1766592196981,24.2356966,122.84,122.8,0.71]
[1766592197185,23.8156966,122.84,122.8,5.29953457]
[1766592197385,23.00109902,122.84,122.8,5.29953457]
[1766592197703,10.43767296,122.85,122.81,4.58953457]
[1766592197897,13.14846413,122.87,122.82,5.29953457]
[1766592198103,22.99892956,122.87,122.83,5.29953457]
[1766592199492,22.99892956,122.87,122.83,0.71]
[1766592199493,27.58846413,122.87,122.83,0.71]
[1766592199690,22.99892956,122.87,122.83,0.71]
[1766592200108,22.99892956,122.87,122.83,5.29953457]
[1766592201608,27.58846413,122.87,122.83,0.71]
[1766592201909,22.99892956,122.87,122.83,5.29953457]
[1766592202604,27.58846413,122.87,122.83,0.71]
[1766592202805,48.35517203,122.87,122.82,4.58953457]
[1766592202985,48.35517203,122.87,122.82,5.29953457]
[1766592203808,0.42,122.83,122.78,4.58953457]
[1766592204125,19.44953457,122.82,122.77,13.44450527]
[1766592204416,4.58953457,122.8,122.75,13.64611859]
[1766592204643,5.00953457,122.81,122.76,12.73537491]
[1766592204832,20.26413215,122.82,122.78,0.71]
[1766592205585,1.23459758,122.83,122.79,4.58953457]
[1766592205787,14.86,122.82,122.78,5.29953457]
[1766592206312,23.00200521,122.82,122.78,5.29953457]
[1766592206815,1.23459758,122.81,122.76,11.14767296]
[1766592206998,5.82413215,122.81,122.76,11.14767296]
[1766592207309,5.82413215,122.81,122.76,0.71]
[1766592208618,13.9674449,122.81,122.76,0.71]
[1766592208812,4.58953457,122.8,122.76,0.71]
[1766592209018,5.00953457,122.8,122.75,5.49953457]
[1766592209219,5.00953457,122.8,122.75,0.91]
[1766592209540,4.58953457,122.78,122.75,0.2]
[1766592209820,5.82413215,122.77,122.75,1e-08]
[1766592210207,10.43767296,122.79,122.75,1e-08]
[1766592210516,14.86,122.78,122.75,1e-08]
[1766592210729,8.14464896,122.78,122.75,1e-08]
[1766592211025,23.00464896,122.78,122.75,1e-08]
[1766592212303,8.14464896,122.78,122.75,1e-08]
[1766592212509,23.02464896,122.78,122.75,1e-08]
[1766592213810,28.42878111,122.78,122.75,1e-08]
[1766592214009,4.58953457,122.77,122.75,1e-08]
[1766592214214,4.58953457,122.76,122.75,1e-08]
[1766592214525,0.42,122.77,122.75,1e-08]
[1766592214729,5.00953457,122.77,122.75,1e-08]
[1766592215726,13.1551645,122.77,122.75,1e-08]
[1766592215929,14.88,122.76,122.75,1e-08]
[1766592216126,31.14180511,122.76,122.71,0.2]
[1766592216319,4.58953457,122.74,122.71,0.2]
[1766592216520,14.88,122.74,122.71,0.2]
[1766592216738,14.88,122.74,122.71,0.91]
[1766592217801,10.43767296,122.76,122.73,0.71]
[1766592218006,14.88,122.77,122.75,0.71]
[1766592220701,8.14492517,122.78,122.75,0.71]
[1766592220923,23.02492517,122.78,122.75,0.71]
[1766592221629,28.03445974,122.78,122.73,13.44721548]
[1766592222036,28.03445974,122.78,122.73,12.73721548]
[1766592222243,28.03445974,122.78,122.74,0.71]
[1766592222619,23.44492517,122.78,122.74,5.29953457]
[1766592222946,14.88,122.78,122.74,12.73681146]
[1766592223250,8.14348177,122.8,122.76,4.58953457]
[1766592223533,25.36728775,122.81,122.77,5.29953457]
[1766592223534,23.02281987,122.81,122.77,5.29953457]
[1766592223717,23.02281987,122.81,122.78,0.71]
[1766592224119,23.02281987,122.81,122.77,1.80450999]
[1766592224725,23.02281987,122.81,122.77,2.51450999]
[1766592226041,23.02281987,122.81,122.77,5.3133193]
[1766592226224,23.02281987,122.81,122.77,0.71]
[1766592226731,27.62613917,122.81,122.77,0.71]
[1766592227146,23.02281987,122.81,122.77,0.71]
[1766592228718,33.45996025,122.82,122.79,4.6033193]
[1766592228923,10.43767296,122.82,122.8,0.71]
[1766592229231,18.57973583,122.82,122.8,0.71]
[1766592229420,18.57973583,122.82,122.78,5.3133193]
[1766592229628,18.57973583,122.82,122.78,0.71]
[1766592229629,23.60305513,122.82,122.78,0.71]
[1766592229825,14.88,122.81,122.78,0.71]
[1766592230537,14.88,122.81,122.77,8.14502449]
[1766592230714,14.88,122.81,122.79,8.19010743]
[1766592231043,14.88,122.81,122.79,0.71]
[1766592231542,25.31767296,122.84,122.8,8.19010743]
[1766592231745,25.31767296,122.84,122.81,0.71]
[1766592233128,14.88,122.84,122.81,0.71]
[1766592233331,23.02072128,122.84,122.81,0.71]
[1766592233634,23.02072128,122.84,122.76,26.13227054]
[1766592233635,7.90010743,122.82,122.77,16.33509149]
[1766592233845,22.78010743,122.82,122.77,8.19010743]
[1766592234020,34.03237797,122.82,122.77,0.71]
[1766592235017,34.03237797,122.82,122.77,8.19010743]
[1766592235332,8.14265939,122.81,122.77,7.48010743]
[1766592235513,8.14265939,122.81,122.78,0.71]
[1766592238242,10.43767296,122.82,122.78,7.48010743]
[1766592238416,25.31767296,122.82,122.79,0.71]
[1766592238621,33.45974607,122.82,122.79,0.71]
[1766592238848,42.17445108,122.82,122.77,0.71]
[1766592240321,42.17445108,122.82,122.78,0.71]
[1766592240526,33.45974607,122.82,122.79,0.71]
[1766592240743,23.02203153,122.82,122.77,8.1452788]
[1766592240931,23.02203153,122.82,122.77,0.71]
[1766592240932,7.48010743,122.81,122.77,0.71]
[1766592241327,8.29470501,122.81,122.77,0.71]
[1766592241533,7.90010743,122.78,122.73,8.19010743]
[1766592241744,14.88,122.77,122.74,0.71]
[1766592242449,23.02539548,122.77,122.74,0.71]
[1766592243926,23.02539548,122.77,122.71,0.2]
[1766592243927,7.48010743,122.75,122.71,0.2]
[1766592244151,7.48010743,122.73,122.71,0.2]
[1766592244537,30.92788687,122.74,122.71,0.2]
[1766592245135,7.48010743,122.73,122.71,0.2]
[1766592245754,31.74248445,122.74,122.71,0.2]
[1766592247164,0.81459758,122.74,122.71,0.2]
[1766592247342,25.31767296,122.75,122.72,0.68]
[1766592247653,23.02543419,122.77,122.74,0.68]
[1766592248343,30.50554162,122.77,122.74,0.68]
[1766592248649,34.27708998,122.78,122.74,0.68]
[1766592248953,41.75719741,122.78,122.74,0.68]
[1766592249549,11.25227054,122.78,122.74,0.68]
[1766592249757,15.6237291,122.8,122.75,7.48010743]
[1766592249927,33.46129463,122.8,122.76,0.68]
[1766592250127,23.02362167,122.8,122.77,0.68]
[1766592250343,23.02362167,122.8,122.78,7.48010743]
[1766592250344,14.88,122.8,122.78,7.48010743]
[1766592250559,8.14108083,122.84,122.8,0.68]
[1766592250755,7.90010743,122.86,122.76,10.43767296]
[1766592250756,33.45779992,122.85,122.81,8.16010743]
[1766592251050,33.45779992,122.85,122.82,0.68]
[1766592251051,14.88,122.85,122.82,0.68]
[1766592251349,30.50013145,122.85,122.8,8.16010743]
[1766592251557,33.45769698,122.85,122.8,8.16010743]
[1766592251748,8.13951057,122.86,122.82,8.16010743]
[1766592251953,33.45658736,122.87,122.83,0.68]
[1766592252149,33.45658736,122.87,122.83,7.48010743]
[1766592252336,14.88,122.87,122.84,8.16010743]
[1766592252725,14.88,122.87,122.85,0.68]
[1766592253042,23.01747197,122.89,122.85,8.16010743]
[1766592253348,41.35559499,122.89,122.85,0.68]
[1766592253561,33.45548756,122.89,122.85,0.68]
[1766592253857,14.88,122.89,122.86,8.16010743]
[1766592254046,14.88,122.89,122.87,0.68]
[1766592254447,14.88,122.89,122.87,8.16010743]
[1766592254670,14.88,122.89,122.87,0.68]
[1766592255162,30.91636205,122.91,122.84,0.68]
[1766592255342,30.91636205,122.91,122.87,0.68]
[1766592255670,30.49636205,122.91,122.87,0.68]
[1766592255839,0.42,122.9,122.84,16.30057742]
[1766592256040,22.36010743,122.89,122.85,0.68]
[1766592256739,7.48010743,122.88,122.83,0.68]
[1766592256946,7.90010743,122.88,122.83,0.68]
[1766592257172,14.88,122.87,122.83,0.68]
[1766592257669,8.13934559,122.86,122.83,0.68]
[1766592258166,15.61945302,122.86,122.81,0.68]
[1766592258339,14.88,122.85,122.81,0.68]
[1766592258540,14.88,122.85,122.82,0.68]
[1766592258952,14.88,122.85,122.83,8.16010743]
[1766592259156,23.01890588,122.87,122.83,8.16010743]
[1766592259742,14.88,122.87,122.84,0.68]
[1766592259973,23.01872398,122.87,122.84,0.68]
[1766592260344,14.88,122.87,122.84,8.16010743]
[1766592260566,14.88,122.87,122.85,0.68]
[1766592260877,30.4777029,122.89,122.85,0.68]
[1766592261082,22.99759547,122.89,122.85,0.68]
[1766592261394,14.86,122.89,122.86,8.16010743]
[1766592262183,30.89758805,122.89,122.84,8.16010743]
[1766592262351,17.91778039,122.88,122.84,0.68]
[1766592262548,22.34010743,122.87,122.81,23.70239768]
[1766592262746,22.76010743,122.87,122.82,8.16010743]
[1766592263162,22.76010743,122.87,122.82,0.68]
[1766592263358,22.76010743,122.87,122.82,8.16010743]
[1766592263868,16.03945302,122.86,122.81,0.68]
[1766592264254,15.61945302,122.86,122.82,0.68]
[1766592264472,14.86,122.85,122.82,0.68]
[1766592264718,14.86,122.85,122.83,0.68]
[1766592264875,8.13891691,122.87,122.83,0.68]
[1766592265476,8.13891691,122.87,122.83,8.16010743]
[1766592265964,8.13891691,122.87,122.84,0.68]
[1766592267372,33.43597478,122.88,122.84,0.68]
[1766592267571,25.29767296,122.88,122.85,0.68]
[1766592267752,33.43576045,122.88,122.85,0.68]
[1766592268276,25.29767296,122.88,122.85,0.68]
[1766592268575,33.43569702,122.88,122.86,0.68]
[1766592268954,25.29767296,122.88,122.86,0.68]
[1766592269166,33.43571713,122.88,122.84,7.48010743]
[1766592269478,41.33582456,122.88,122.83,8.16010743]
[1766592269848,41.33582456,122.88,122.83,16.30139847]
[1766592270048,41.33582456,122.88,122.83,8.82129104]
[1766592270278,54.20076921,122.88,122.83,0.68]
[1766592270473,7.90010743,122.87,122.81,7.48010743]
[1766592270668,7.90010743,122.85,122.79,7.48010743]
[1766592270869,22.76010743,122.84,122.79,0.68]
[1766592272479,15.62144098,122.83,122.79,0.68]
[1766592272673,14.86,122.82,122.79,0.68]
[1766592274057,23.00081075,122.84,122.81,0.68]
[1766592274256,14.86,122.84,122.81,0.68]
[1766592275179,23.00106241,122.84,122.79,8.1439714]
[1766592275361,0.42,122.83,122.77,7.48010743]
[1766592275674,14.86,122.82,122.79,0.68]
[1766592277278,23.00202038,122.82,122.79,0.68]
[1766592278386,14.86,122.82,122.79,0.68]
[1766592278874,23.00202058,122.82,122.79,0.68]
[1766592279177,14.86,122.82,122.79,0.68]
[1766592279772,8.14159324,122.83,122.79,0.68]
[1766592279974,8.1366965,122.9,122.83,0.71]
[1766592280155,0.71,122.89,122.85,0.71]
[1766592280360,0.71,122.89,122.81,11.25193889]
[1766592280361,7.48010743,122.88,122.82,0.71]
[1766592280560,8.19010743,122.89,122.84,8.19010743]
[1766592280758,53.77611071,122.9,122.86,0.71]
[1766592280759,14.86,122.88,122.86,0.71]
[1766592280980,22.9966965,122.9,122.86,0.71]
[1766592281153,8.19010743,122.89,122.84,0.71]
[1766592281358,8.19010743,122.89,122.84,8.19010743]
[1766592281678,8.19010743,122.89,122.83,7.48010743]
[1766592281679,8.19010743,122.88,122.83,7.48010743]
[1766592281856,0.71,122.87,122.82,0.71]
[1766592282052,0.71,122.87,122.83,7.48010743]
[1766592282256,0.71,122.87,122.83,8.19010743]
[1766592282655,14.86,122.88,122.83,8.19010743]
[1766592282860,23.05010743,122.88,122.83,0.71]
[1766592283276,23.05010743,122.88,122.83,8.19010743]
[1766592283479,15.57,122.88,122.83,8.19010743]
[1766592283984,14.86,122.88,122.84,7.48010743]
[1766592284164,11.14767296,122.91,122.86,0.71]
[1766592284369,23.05010743,122.9,122.86,0.71]
[1766592284674,23.05010743,122.9,122.87,0.71]
[1766592284675,14.86,122.9,122.87,0.71]
[1766592285385,14.86,122.9,122.87,8.19010743]
[1766592286273,22.99713747,122.9,122.87,0.71]
[1766592286783,14.86,122.9,122.87,0.71]
[1766592287083,22.99700246,122.9,122.86,0.71]
[1766592287463,0.71,122.89,122.84,16.33062995]
[1766592287662,8.84630812,122.91,122.86,8.19010743]
[1766592287889,14.86,122.9,122.86,8.19010743]
[1766592288390,14.86,122.9,122.87,0.71]
[1766592288772,17.91778039,122.89,122.83,0.71]
[1766592288978,15.57,122.88,122.83,8.19010743]
[1766592289180,15.57,122.88,122.84,0.71]
[1766592289712,15.57,122.88,122.84,16.33077131]
[1766592290189,15.57,122.88,122.84,8.85066388]
[1766592290398,15.57,122.88,122.84,16.33077131]
[1766592290691,23.70804192,122.88,122.84,8.19010743]
[1766592291075,0.71,122.87,122.83,7.48010743]
[1766592291466,14.86,122.86,122.83,8.19010743]
[1766592292079,14.86,122.86,122.84,0.71]
[1766592292297,14.86,122.87,122.84,0.71]
[1766592293199,22.99869413,122.87,122.84,0.71]
[1766592293369,14.86,122.87,122.84,0.71]
[1766592294092,22.99874888,122.87,122.84,0.71]
[1766592294285,14.86,122.87,122.84,0.71]
[1766592294886,22.9987194,122.87,122.84,0.71]
[1766592295085,23.7087194,122.87,122.83,0.71]
[1766592295371,44.0554273,122.87,122.83,0.71]
[1766592296381,23.7087194,122.87,122.83,0.71]
[1766592296765,23.7087194,122.87,122.83,5.30884656]
[1766592298997,23.7087194,122.87,122.83,0.71]
[1766592299171,23.7087194,122.87,122.83,5.30884656]
[1766592299494,8.84836386,122.88,122.84,0.71]
[1766592299706,14.86,122.87,122.84,0.71]
[1766592300902,22.99870969,122.87,122.84,0.71]
[1766592301084,15.57,122.88,122.84,13.44951516]
[1766592301486,23.70808023,122.88,122.84,0.71]
[1766592301687,0.71,122.87,122.83,4.59884656]
[1766592301888,0.71,122.87,122.83,13.44978686]
[1766592302091,0.71,122.87,122.79,11.25207152]
[1766592302293,0.71,122.86,122.82,5.30884656]
[1766592302484,0.71,122.86,122.82,12.74074756]
[1766592302690,0.71,122.86,122.83,0.71]
[1766592302691,8.84946693,122.86,122.83,0.71]
[1766592303399,8.13946693,122.86,122.83,0.71]
[1766592303984,8.13946693,122.86,122.78,13.45308468]
[1766592303985,0.71,122.83,122.78,13.45308468]
[1766592304186,5.30884656,122.82,122.78,0.71]
[1766592304493,13.4511931,122.82,122.78,0.71]
[1766592305105,13.4511931,122.82,122.76,0.71]
[1766592305106,5.30884656,122.8,122.76,0.71]
[1766592305403,0.71,122.8,122.76,0.71]
[1766592305593,19.45884656,122.81,122.77,4.59884656]
[1766592305797,14.86,122.81,122.78,0.71]
[1766592306101,14.86,122.81,122.79,0.71]
[1766592306277,38.74816865,122.83,122.79,0.71]
[1766592306678,0.71,122.86,122.81,4.59884656]
[1766592306991,14.86,122.85,122.82,0.71]
[1766592307894,23.00003562,122.85,122.82,0.71]
[1766592308198,23.00003562,122.85,122.79,8.83373794]
[1766592308199,5.27884656,122.84,122.79,8.83373794]
[1766592308402,5.27884656,122.84,122.79,13.4325845]
[1766592308579,0.68,122.84,122.8,0.69]
[1766592309210,5.27884656,122.84,122.8,0.69]
[1766592309397,5.27884656,122.83,122.78,0.69]
[1766592309600,0.68,122.82,122.78,0.69]
[1766592309904,13.42122333,122.82,122.78,0.69]
[1766592310090,8.82237677,122.82,122.78,0.69]
[1766592310288,4.59884656,122.81,122.76,5.28884656]
[1766592310490,4.59884656,122.8,122.76,0.69]
[1766592310806,5.27884656,122.8,122.76,0.69]
[1766592311004,5.27884656,122.79,122.74,8.83724566]
[1766592311183,20.13884656,122.79,122.74,5.28884656]
[1766592311484,5.27884656,122.78,122.73,13.4365722]
[1766592311679,5.27884656,122.78,122.74,0.69]
[1766592312484,8.82480113,122.78,122.74,0.69]
[1766592312893,13.42364769,122.78,122.73,12.7465722]
[1766592313087,5.27884656,122.77,122.71,13.63803764]
[1766592313503,0.68,122.77,122.71,13.63803764]
[1766592313696,5.27884656,122.77,122.72,0.69]
[1766592313891,13.42469201,122.77,122.72,0.69]
[1766592314097,13.42469201,122.77,122.72,8.83859136]
[1766592314605,13.42469201,122.77,122.72,13.43743792]
[1766592314994,13.42469201,122.77,122.72,5.28884656]
[1766592315196,13.42469201,122.77,122.72,0.69]
[1766592315381,4.59884656,122.76,122.72,0.69]
[1766592315581,0.68,122.74,122.71,0.2]
[1766592315988,13.42650674,122.74,122.71,0.2]
[1766592316478,8.82766018,122.74,122.71,0.2]
[1766592316803,0.68,122.74,122.71,0.2]
[1766592317310,8.8273409,122.74,122.71,0.2]
[1766592317507,13.42618746,122.74,122.71,0.2]
[1766592318305,8.8273409,122.74,122.71,0.2]
[1766592318510,23.02688915,122.75,122.71,0.2]
[1766592318699,13.42573571,122.75,122.71,0.89]
[1766592318898,0.68,122.71,122.69,0.2]
[1766592319095,5.27884656,122.71,122.69,0.2]
[1766592319409,118.78,122.74,122.69,0.2]
[1766592319410,4.59884656,122.72,122.69,0.2]
[1766592319909,5.27884656,122.72,122.69,0.2]
[1766592320281,13.42770153,122.72,122.69,0.2]
[1766592321302,4.59884656,122.7,122.69,1e-08]
[1766592321903,5.27884656,122.7,122.66,0.2]
[1766592322085,5.27884656,122.69,122.66,0.2]
[1766592322904,20.15884656,122.71,122.66,12.95128103]
[1766592323110,20.15884656,122.71,122.66,4.79884656]
[1766592323408,28.30866741,122.71,122.66,0.2]
[1766592323821,27.62866741,122.71,122.66,0.2]
[1766592323988,5.27884656,122.7,122.66,0.2]
[1766592324187,5.27884656,122.69,122.66,0.2]
[1766592324486,23.70982085,122.71,122.66,13.6413702]
[1766592324689,28.30866741,122.71,122.66,13.6413702]
[1766592325508,0.68,122.7,122.66,9.04252364]
[1766592326014,23.70999736,122.7,122.66,0.89]
[1766592326314,28.30884392,122.7,122.66,0.89]
[1766592326823,28.30892302,122.7,122.66,0.89]
[1766592327119,5.27884656,122.69,122.66,0.2]
[1766592328119,13.42990003,122.69,122.66,0.2]
[1766592328618,0.68,122.66,122.65,0.2]
[1766592330492,14.88,122.67,122.65,0.2]
[1766592332410,132.21017353,122.68,122.65,0.2]
[1766592332713,5.27884656,122.67,122.65,0.2]
[1766592332919,15.56,122.67,122.65,0.2]
[1766592333401,20.15884656,122.67,122.65,0.2]
[1766592334119,17.36887365,122.67,122.65,0.2]
[1766592334314,15.56,122.67,122.65,0.2]
[1766592334520,14.88,122.67,122.65,0.2]
[1766592335302,23.03244518,122.67,122.65,0.2]
[1766592336420,14.88,122.67,122.65,0.2]
[1766592337411,0.66,122.66,122.65,1e-08]
[1766592337617,0.66,122.66,122.63,0.1]
[1766592337618,2.46887365,122.66,122.63,0.1]
[1766592337810,14.88,122.65,122.63,0.1]
[1766592338007,17.34887365,122.65,122.63,0.1]
[1766592338326,0.66,122.64,122.63,1e-08]
[1766592338621,11.09767296,122.63,122.62,1e-08]
[1766592338822,25.97767296,122.63,122.62,1e-08]
[1766592339117,14.88,122.63,122.62,1e-08]
[1766592341801,14.88,122.64,122.62,1e-08]
[1766592342823,23.03411653,122.64,122.62,1e-08]
[1766592343421,14.88,122.64,122.62,1e-08]
[1766592343628,10.43767296,122.68,122.63,4.61640366]
[1766592343808,25.31767296,122.67,122.64,0.67]
[1766592344121,25.31767296,122.67,122.62,4.61640367]
[1766592344122,5.27640366,122.66,122.62,0.67000001]
[1766592344419,0.66,122.64,122.62,1e-08]
[1766592344621,0.66,122.62,122.61,1e-08]
[1766592344807,14.88,122.63,122.61,1e-08]
[1766592345210,23.03463531,122.63,122.61,1e-08]
[1766592345722,14.88,122.63,122.61,1e-08]
[1766592346221,11.09767296,122.64,122.61,1e-08]
[1766592346429,25.99767296,122.64,122.61,1e-08]
[1766592347021,25.33767296,122.64,122.61,1e-08]
[1766592347236,14.9,122.64,122.62,0.67]
[1766592347904,28.3303845,122.64,122.61,1e-08]
[1766592349824,0.66,122.63,122.61,1e-08]
[1766592350417,5.27640366,122.63,122.61,1e-08]
[1766592350822,0.66,122.63,122.61,1e-08]
[1766592351023,5.27640366,122.63,122.61,1e-08]
[1766592351225,5.27640366,122.63,122.6,0.1]
[1766592351427,8.15527646,122.62,122.6,0.1]
[1766592351612,23.05453499,122.64,122.6,0.77]
[1766592351811,28.33093865,122.64,122.6,0.77]
[1766592352338,48.71580492,122.64,122.6,0.77]
[1766592352711,0.66,122.63,122.6,0.77]
[1766592353420,8.81502112,122.63,122.6,0.77]
[1766592355322,13.63081833,122.7,122.6,0.77]
[1766592355323,24.47,122.76,122.63,10.43767296]
[1766592355521,39.94055373,122.8,122.68,0.67]
[1766592355522,19.58,122.79,122.68,0.67]
[1766592355829,7.50271833,122.73,122.68,0.67]
[1766592356025,22.40271833,122.73,122.68,0.67]
[1766592356539,8.14464896,122.78,122.73,0.67]
[1766592356711,8.14464896,122.78,122.73,8.17271833]
[1766592357328,8.16271833,122.77,122.72,7.50271833]
[1766592357520,0.66,122.8,122.7,14.9]
[1766592357732,0.66,122.79,122.74,7.50271833]
[1766592357912,15.56,122.79,122.74,7.50271833]
[1766592358639,4.90840891,122.83,122.78,7.50271833]
[1766592358846,0.76,122.85,122.82,7.50271833]
[1766592359020,0.76,122.85,122.75,10.43767296]
[1766592359021,0.1,122.85,122.84,7.50271833]
[1766592360739,0.1,122.85,122.83,7.50271833]
[1766592360913,0.1,122.85,122.78,31.612925]
[1766592361119,14.98,122.85,122.83,7.50271833]
[1766592361334,17.94039129,122.84,122.74,15.71473032]
[1766592361520,0.66,122.82,122.74,15.71473032]
[1766592361714,15.54,122.82,122.8,7.50271833]
[1766592361926,15.54,122.82,122.74,26.15240328]
[1766592362126,15.54,122.82,122.8,7.50271833]
[1766592362322,14.88,122.82,122.8,7.50271833]
[1766592362728,14.88,122.82,122.79,7.50271833]
[1766592363044,14.88,122.82,122.74,26.15240328]
[1766592363045,14.88,122.82,122.8,7.50271833]
[1766592363253,14.88,122.84,122.82,4.25374345]
[1766592363433,14.88,122.84,122.83,7.50271833]
[1766592364238,0.1,122.85,122.83,7.50271833]
[1766592364444,8.79756332,122.89,122.84,7.50271833]
[1766592364775,14.88,122.87,122.85,7.50271833]
[1766592366556,14.88,122.87,122.84,7.50271833]
[1766592366743,16.30031272,122.89,122.84,7.50271833]
[1766592367049,14.88,122.88,122.84,7.50271833]
[1766592370160,15.6,122.88,122.84,7.50271833]
[1766592370356,15.6,122.88,122.83,8.14121191]
[1766592370654,15.6,122.88,122.84,7.50271833]
[1766592370854,15.6,122.88,122.82,7.50271833]
[1766592370855,10.43767296,122.87,122.82,7.50271833]
[1766592371051,10.43767296,122.87,122.84,7.50271833]
[1766592371052,14.88,122.86,122.84,7.50271833]
[1766592372632,0.72,122.89,122.85,7.50271833]
[1766592372633,18.57522209,122.89,122.85,7.50271833]
[1766592372848,14.88,122.88,122.85,7.50271833]
[1766592373048,14.88,122.88,122.84,8.14065461]
[1766592373256,14.88,122.88,122.84,7.50271833]
[1766592374155,0.72,122.87,122.84,7.50271833]
[1766592374361,0.72,122.87,122.83,7.50271833]
[1766592374546,0.72,122.87,122.84,7.50271833]
[1766592374744,15.6,122.88,122.85,7.50271833]